fUST/lending_fUST_20260530
["ID","MTS","AMOUNT","RATE_DAILY","PERIOD"]
[423472922,1780153845000,-500.0,8.219e-05,2]
[423472923,1780153845000,-502.05069914,8.219e-05,2]
[423472921,1780153845000,-500.0,8.219e-05,2]
[423472898,1780153845000,-290.08892432,8.219e-05,2]
[423472910,1780153845000,-500.0,8.219e-05,2]
[423472941,1780153845000,-500.42768074,8.219e-05,2]
[423472882,1780153845000,-211.35,8.219e-05,2]
[423472881,1780153845000,-500.0,8.219e-05,2]
[423472883,1780153845000,-500.0,8.219e-05,2]
[423472887,1780153845000,-500.0,8.219e-05,2]
[423472884,1780153845000,-500.0,8.219e-05,2]
[423472886,1780153845000,-247.62007405,8.219e-05,2]
[423472888,1780153845000,-439.69892671,8.219e-05,2]
[423472889,1780153845000,-168.61742672,8.219e-05,2]
[423472891,1780153845000,-151.5,8.219e-05,2]
[423472890,1780153845000,-151.5,8.219e-05,2]
[423472893,1780153845000,-151.5,8.219e-05,2]
[423472896,1780153845000,-298.17825759,8.219e-05,2]
[423472920,1780153845000,-500.0,8.219e-05,2]
[423472895,1780153845000,-202.24537253,8.219e-05,2]
[423472894,1780153845000,-151.5,8.219e-05,2]
[423472907,1780153845000,-500.0,8.219e-05,2]
[423472897,1780153845000,-602.06,8.219e-05,2]
[423472908,1780153845000,-500.0,8.219e-05,2]
[423472899,1780153845000,-500.0,8.219e-05,2]
[423472909,1780153845000,-500.0,8.219e-05,2]
[423472905,1780153845000,-500.0,8.219e-05,2]
[423472903,1780153845000,-500.0,8.219e-05,2]
[423472906,1780153845000,-505.14,8.219e-05,2]
[423472900,1780153845000,-500.0,8.219e-05,2]
[423472901,1780153845000,-500.0,8.219e-05,2]
[423472902,1780153845000,-500.0,8.219e-05,2]
[423472904,1780153845000,-500.0,8.219e-05,2]
[423472892,1780153845000,-301.86580179,8.219e-05,2]
[423472940,1780153845000,-500.0,8.219e-05,2]
[423472885,1780153845000,-500.0,8.219e-05,2]
[423472944,1780153845000,-1303.49,8.219e-05,2]
[423472974,1780153845000,-500.55329386,8.219e-05,2]
[423472978,1780153845000,-551.09,8.219e-05,2]
[423472977,1780153845000,-3223.29,8.219e-05,2]
[423472984,1780153845000,-2125.94,8.219e-05,2]
[423472983,1780153845000,-395.08570767,8.219e-05,2]
[423472975,1780153845000,-500.0,8.219e-05,2]
[423472976,1780153845000,-500.59604064,8.219e-05,2]
[423472980,1780153845000,-500.70052025,8.219e-05,2]
[423472987,1780153845000,-500.0,8.219e-05,2]
[423472989,1780153845000,-500.0,8.219e-05,2]
[423472988,1780153845000,-500.0,8.219e-05,2]
[423472991,1780153845000,-526.86898462,8.219e-05,2]
[423472992,1780153845000,-508.67,8.219e-05,2]
[423472979,1780153845000,-500.0,8.219e-05,2]
[423472993,1780153845000,-1239.95,8.219e-05,2]
[423472994,1780153845000,-500.0,8.219e-05,2]
[423472996,1780153845000,-500.0,8.219e-05,2]
[423472998,1780153845000,-530.74519802,8.219e-05,2]
[423472997,1780153845000,-16079.84,8.219e-05,2]
[423472999,1780153845000,-1299.52,8.219e-05,2]
[423473000,1780153845000,-916.92,8.219e-05,2]
[423473005,1780153845000,-249.64966195,8.219e-05,2]
[423473002,1780153845000,-3080.64,8.219e-05,2]
[423473001,1780153845000,-500.0,8.219e-05,2]
[423473003,1780153845000,-500.0,8.219e-05,2]
[423473006,1780153845000,-500.0,8.219e-05,2]
[423473004,1780153845000,-907.21,8.219e-05,2]
[423472942,1780153845000,-500.0,8.219e-05,2]
[423472995,1780153845000,-574.58798777,8.219e-05,2]
[423472982,1780153845000,-500.0,8.219e-05,2]
[423472990,1780153845000,-552.66624257,8.219e-05,2]
[423472981,1780153845000,-500.0,8.219e-05,2]
[423472943,1780153845000,-500.53865918,8.219e-05,2]
[423472986,1780153845000,-1994.98,8.219e-05,2]
[423472959,1780153845000,-500.39662144,8.219e-05,2]
[423472958,1780153845000,-500.0,8.219e-05,2]
[423472947,1780153845000,-500.0,8.219e-05,2]
[423472950,1780153845000,-500.0,8.219e-05,2]
[423472949,1780153845000,-500.53867313,8.219e-05,2]
[423472951,1780153845000,-500.0,8.219e-05,2]
[423472952,1780153845000,-500.0,8.219e-05,2]
[423472954,1780153845000,-500.0,8.219e-05,2]
[423472953,1780153845000,-500.57495586,8.219e-05,2]
[423472955,1780153845000,-500.0,8.219e-05,2]
[423472956,1780153845000,-500.0,8.219e-05,2]
[423472957,1780153845000,-1119.25,8.219e-05,2]
[423472961,1780153845000,-235.13414493,8.219e-05,2]
[423472948,1780153845000,-500.0,8.219e-05,2]
[423472973,1780153845000,-500.0,8.219e-05,2]
[423472985,1780153845000,-987.26,8.219e-05,2]
[423472960,1780153845000,-500.61960217,8.219e-05,2]
[423472966,1780153845000,-500.4864851,8.219e-05,2]
[423472970,1780153845000,-683.53,8.219e-05,2]
[423472969,1780153845000,-3151.24,8.219e-05,2]
[423472972,1780153845000,-826.34,8.219e-05,2]
[423472968,1780153845000,-283.34715702,8.219e-05,2]
[423472964,1780153845000,-500.0,8.219e-05,2]
[423472967,1780153845000,-500.0,8.219e-05,2]
[423472963,1780153845000,-749.72,8.219e-05,2]
[423472971,1780153845000,-1054.13,8.219e-05,2]
[423472962,1780153845000,-902.04,8.219e-05,2]
[423472965,1780153845000,-500.0,8.219e-05,2]
[423473044,1780153846000,-1384.1674,8.493e-05,2]
[423473061,1780153846000,-500.0,8.493e-05,2]
[423473046,1780153846000,-466.56610165,8.493e-05,2]
[423473062,1780153846000,-186.13497545,8.493e-05,2]
[423473043,1780153846000,-500.0,8.493e-05,2]
[423473050,1780153846000,-500.0,8.493e-05,2]
[423473045,1780153846000,-500.0,8.493e-05,2]
[423473042,1780153846000,-198.94985924,8.493e-05,2]
[423473039,1780153846000,-233.84704073,8.493e-05,2]
[423473060,1780153846000,-500.0,8.493e-05,2]
[423473041,1780153846000,-407.68516009,8.493e-05,2]
[423473047,1780153846000,-508.93,8.493e-05,2]
[423473052,1780153846000,-943.36,8.493e-05,2]
[423473059,1780153846000,-339.40159126,8.493e-05,2]
[423473054,1780153846000,-1243.18,8.493e-05,2]
[423473053,1780153846000,-500.0,8.493e-05,2]
[423473055,1780153846000,-500.87575633,8.493e-05,2]
[423473051,1780153846000,-567.72,8.493e-05,2]
[423473056,1780153846000,-500.0,8.493e-05,2]
[423473057,1780153846000,-552.96241329,8.493e-05,2]
[423473058,1780153846000,-500.0,8.493e-05,2]
[423473064,1780153846000,-500.0,8.493e-05,2]
[423473066,1780153846000,-500.0,8.493e-05,2]
[423473068,1780153846000,-500.0,8.493e-05,2]
[423473065,1780153846000,-500.0,8.493e-05,2]
[423473067,1780153846000,-500.0,8.493e-05,2]
[423473048,1780153846000,-500.0,8.493e-05,2]
[423473063,1780153846000,-500.0,8.493e-05,2]
[423473049,1780153846000,-443.42444975,8.493e-05,2]
[423473010,1780153846000,-500.0,8.219e-05,2]
[423473037,1780153846000,-500.0,8.493e-05,2]
[423473069,1780153846000,-993.09,8.493e-05,2]
[423473011,1780153846000,-521.73543676,8.219e-05,2]
[423473012,1780153846000,-578.42,8.219e-05,2]
[423473008,1780153846000,-607.31,8.219e-05,2]
[423473009,1780153846000,-500.0,8.219e-05,2]
[423473007,1780153846000,-500.0,8.219e-05,2]
[423473016,1780153846000,-500.0,8.219e-05,2]
[423473013,1780153846000,-1808.3,8.219e-05,2]
[423473017,1780153846000,-500.0,8.219e-05,2]
[423473015,1780153846000,-500.0,8.219e-05,2]
[423473019,1780153846000,-500.0,8.219e-05,2]
[423473020,1780153846000,-312.4688432,8.219e-05,2]
[423473021,1780153846000,-500.0,8.219e-05,2]
[423473014,1780153846000,-500.0,8.219e-05,2]
[423473018,1780153846000,-500.0,8.219e-05,2]
[423473022,1780153846000,-524.64849091,8.219e-05,2]
[423473023,1780153846000,-151.5,8.219e-05,2]
[423473024,1780153846000,-500.0,8.219e-05,2]
[423473026,1780153846000,-500.0,8.219e-05,2]
[423473036,1780153846000,-500.0,8.493e-05,2]
[423473029,1780153846000,-800.0,8.367e-05,2]
[423473028,1780153846000,-267.6823,8.356e-05,2]
[423473025,1780153846000,-500.0,8.219e-05,2]
[423473027,1780153846000,-800.0,8.313e-05,2]
[423473031,1780153846000,-1000.0,8.421e-05,2]
[423473032,1780153846000,-244.0,8.421e-05,2]
[423473034,1780153846000,-800.0,8.434e-05,2]
[423473030,1780153846000,-800.0,8.419e-05,2]
[423473035,1780153846000,-800.0,8.448e-05,2]
[423473038,1780153846000,-500.0,8.493e-05,2]
[423473071,1780153846000,-502.66285442,8.493e-05,2]
[423473077,1780153846000,-500.0,8.493e-05,2]
[423473072,1780153846000,-500.0,8.493e-05,2]
[423473115,1780153846000,-494.11767632,8.493e-05,2]
[423473107,1780153846000,-907.21,8.493e-05,2]
[423473106,1780153846000,-3080.64,8.493e-05,2]
[423473108,1780153846000,-500.0,8.493e-05,2]
[423473111,1780153846000,-500.0,8.493e-05,2]
[423473109,1780153846000,-607.31,8.493e-05,2]
[423473113,1780153846000,-1808.3,8.493e-05,2]
[423473112,1780153846000,-578.42,8.493e-05,2]
[423473110,1780153846000,-500.0,8.493e-05,2]
[423473116,1780153846000,-800.0,8.517e-05,2]
[423473127,1780153846000,-6348.88440634,8.767e-05,2]
[423473117,1780153846000,-3322.47516491,8.592e-05,2]
[423473124,1780153846000,-500.39818,8.767e-05,2]
[423473103,1780153846000,-1299.52,8.493e-05,2]
[423473119,1780153846000,-500.0,8.767e-05,2]
[423473118,1780153846000,-500.0,8.767e-05,2]
[423473121,1780153846000,-598.26728241,8.767e-05,2]
[423473120,1780153846000,-934.79262877,8.767e-05,2]
[423473125,1780153846000,-500.0,8.767e-05,2]
[423473126,1780153846000,-7682.15013167,8.767e-05,2]
[423473128,1780153846000,-5142.59636914,8.767e-05,2]
[423473123,1780153846000,-186.77156723,8.767e-05,2]
[423473070,1780153846000,-500.0,8.493e-05,2]
[423473129,1780153846000,-4063.28602006,8.767e-05,2]
[423473131,1780153846000,-500.0,8.767e-05,2]
[423473132,1780153846000,-2285.59838628,8.767e-05,2]
[423473134,1780153846000,-1015.82150501,8.767e-05,2]
[423473133,1780153846000,-1587.22110159,8.767e-05,2]
[423473122,1780153846000,-336.52534636,8.767e-05,2]
[423473105,1780153846000,-500.0,8.493e-05,2]
[423473130,1780153846000,-3110.95335911,8.767e-05,2]
[423473104,1780153846000,-916.92,8.493e-05,2]
[423473114,1780153846000,-500.0,8.493e-05,2]
[423473073,1780153846000,-1213.18,8.493e-05,2]
[423473076,1780153846000,-1303.49,8.493e-05,2]
[423473075,1780153846000,-500.0,8.493e-05,2]
[423473083,1780153846000,-500.0,8.493e-05,2]
[423473086,1780153846000,-683.53,8.493e-05,2]
[423473085,1780153846000,-3151.24,8.493e-05,2]
[423473078,1780153846000,-1119.25,8.493e-05,2]
[423473079,1780153846000,-500.0,8.493e-05,2]
[423473082,1780153846000,-531.05,8.493e-05,2]
[423473080,1780153846000,-902.04,8.493e-05,2]
[423473081,1780153846000,-749.72,8.493e-05,2]
[423473089,1780153846000,-500.0,8.493e-05,2]
[423473088,1780153846000,-826.34,8.493e-05,2]
[423473074,1780153846000,-1882.04,8.493e-05,2]
[423473087,1780153846000,-1054.13,8.493e-05,2]
[423473084,1780153846000,-500.0,8.493e-05,2]
[423473100,1780153846000,-508.67,8.493e-05,2]
[423473096,1780153846000,-2125.94,8.493e-05,2]
[423473099,1780153846000,-500.0,8.493e-05,2]
[423473094,1780153846000,-500.0,8.493e-05,2]
[423473097,1780153846000,-987.26,8.493e-05,2]
[423473093,1780153846000,-500.0,8.493e-05,2]
[423473095,1780153846000,-553.66780374,8.493e-05,2]
[423473102,1780153846000,-16079.84,8.493e-05,2]
[423473092,1780153846000,-551.09,8.493e-05,2]
[423473090,1780153846000,-183.04041654,8.493e-05,2]
[423473101,1780153846000,-1239.95,8.493e-05,2]
[423473098,1780153846000,-1994.98,8.493e-05,2]
[423473091,1780153846000,-3223.29,8.493e-05,2]
[423473171,1780153847000,-3151.24,8.767e-05,2]
[423473169,1780153847000,-749.72,8.767e-05,2]
[423473172,1780153847000,-683.53,8.767e-05,2]
[423473168,1780153847000,-902.04,8.767e-05,2]
[423473163,1780153847000,-1882.04,8.767e-05,2]
[423473162,1780153847000,-1213.18,8.767e-05,2]
[423473166,1780153847000,-500.0,8.767e-05,2]
[423473160,1780153847000,-500.0,8.767e-05,2]
[423473165,1780153847000,-1303.49,8.767e-05,2]
[423473161,1780153847000,-500.0,8.767e-05,2]
[423473170,1780153847000,-500.0,8.767e-05,2]
[423473175,1780153847000,-3223.29,8.767e-05,2]
[423473176,1780153847000,-551.09,8.767e-05,2]
[423473179,1780153847000,-987.26,8.767e-05,2]
[423473174,1780153847000,-826.34,8.767e-05,2]
[423473173,1780153847000,-1054.13,8.767e-05,2]
[423473177,1780153847000,-500.0,8.767e-05,2]
[423473178,1780153847000,-2125.94,8.767e-05,2]
[423473181,1780153847000,-500.0,8.767e-05,2]
[423473182,1780153847000,-508.67,8.767e-05,2]
[423473187,1780153847000,-500.0,8.767e-05,2]
[423473164,1780153847000,-500.0,8.767e-05,2]
[423473180,1780153847000,-1994.98,8.767e-05,2]
[423473167,1780153847000,-1119.25,8.767e-05,2]
[423473149,1780153847000,-1042.34272928,8.767e-05,2]
[423473157,1780153847000,-601.91780757,8.767e-05,2]
[423473140,1780153847000,-567.72,8.767e-05,2]
[423473139,1780153847000,-500.0,8.767e-05,2]
[423473138,1780153847000,-500.0,8.767e-05,2]
[423473141,1780153847000,-943.36,8.767e-05,2]
[423473136,1780153847000,-317.1267761,8.767e-05,2]
[423473135,1780153847000,-571.39959657,8.767e-05,2]
[423473137,1780153847000,-508.93,8.767e-05,2]
[423473143,1780153847000,-6514.64205801,8.767e-05,2]
[423473148,1780153847000,-1628.6605145,8.767e-05,2]
[423473142,1780153847000,-7882.71689019,8.767e-05,2]
[423473159,1780153847000,-993.09,8.767e-05,2]
[423473153,1780153847000,-500.0,8.767e-05,2]
[423473152,1780153847000,-325.4063708,8.767e-05,2]
[423473151,1780153847000,-1243.18,8.767e-05,2]
[423473184,1780153847000,-16079.84,8.767e-05,2]
[423473155,1780153847000,-500.0,8.767e-05,2]
[423473154,1780153847000,-500.0,8.767e-05,2]
[423473144,1780153847000,-5276.86006698,8.767e-05,2]
[423473147,1780153847000,-2345.27114088,8.767e-05,2]
[423473146,1780153847000,-3192.17460842,8.767e-05,2]
[423473156,1780153847000,-500.0,8.767e-05,2]
[423473158,1780153847000,-500.0,8.767e-05,2]
[423473150,1780153847000,-586.31778522,8.767e-05,2]
[423473186,1780153847000,-916.92,8.767e-05,2]
[423473145,1780153847000,-4169.37091712,8.767e-05,2]
[423473191,1780153847000,-607.31,8.767e-05,2]
[423473213,1780153847000,-1243.18,9.041e-05,2]
[423473214,1780153847000,-611.10075194,9.041e-05,2]
[423473212,1780153847000,-943.36,9.041e-05,2]
[423473219,1780153847000,-993.09,9.041e-05,2]
[423473216,1780153847000,-500.0,9.041e-05,2]
[423473211,1780153847000,-567.72,9.041e-05,2]
[423473215,1780153847000,-533.66507395,9.041e-05,2]
[423473218,1780153847000,-500.0,9.041e-05,2]
[423473223,1780153847000,-1882.04,9.041e-05,2]
[423473225,1780153847000,-1303.49,9.041e-05,2]
[423473217,1780153847000,-500.0,9.041e-05,2]
[423473229,1780153847000,-749.72,9.041e-05,2]
[423473233,1780153847000,-1054.13,9.041e-05,2]
[423473234,1780153847000,-826.34,9.041e-05,2]
[423473226,1780153847000,-500.0,9.041e-05,2]
[423473232,1780153847000,-683.53,9.041e-05,2]
[423473235,1780153847000,-3223.29,9.041e-05,2]
[423473231,1780153847000,-3151.24,9.041e-05,2]
[423473230,1780153847000,-500.0,9.041e-05,2]
[423473227,1780153847000,-1119.25,9.041e-05,2]
[423473228,1780153847000,-902.04,9.041e-05,2]
[423473236,1780153847000,-551.09,9.041e-05,2]
[423473224,1780153847000,-500.0,9.041e-05,2]
[423473209,1780153847000,-500.0,9.041e-05,2]
[423473190,1780153847000,-500.0,8.767e-05,2]
[423473220,1780153847000,-500.0,9.041e-05,2]
[423473192,1780153847000,-500.0,8.767e-05,2]
[423473183,1780153847000,-1239.95,8.767e-05,2]
[423473185,1780153847000,-1299.52,8.767e-05,2]
[423473193,1780153847000,-500.0,8.767e-05,2]
[423473188,1780153847000,-3080.64,8.767e-05,2]
[423473189,1780153847000,-907.21,8.767e-05,2]
[423473194,1780153847000,-578.42,8.767e-05,2]
[423473203,1780153847000,-500.0,9.041e-05,2]
[423473195,1780153847000,-1808.3,8.767e-05,2]
[423473196,1780153847000,-500.0,8.767e-05,2]
[423473197,1780153847000,-500.0,8.767e-05,2]
[423473221,1780153847000,-500.0,9.041e-05,2]
[423473204,1780153847000,-500.0,9.041e-05,2]
[423473222,1780153847000,-1213.18,9.041e-05,2]
[423473210,1780153847000,-500.0,9.041e-05,2]
[423473208,1780153847000,-508.93,9.041e-05,2]
[423473206,1780153847000,-468.78212188,9.041e-05,2]
[423473207,1780153847000,-500.0,9.041e-05,2]
[423473198,1780153847000,-500.0,8.767e-05,2]
[423473202,1780153847000,-968.08212188,9.041e-05,2]
[423473201,1780153847000,-2625.17787812,9.041e-05,2]
[423473199,1780153847000,-532.76132779,8.767e-05,2]
[423473200,1780153847000,-500.0,8.8e-05,2]
[423473205,1780153847000,-31.21787812,9.041e-05,2]
[423473238,1780153848000,-58.0643991,9.041e-05,2]
[423473237,1780153848000,-500.0,9.041e-05,2]
[423473240,1780154133000,-4700.0,5.818e-05,2]
[423473239,1780154133000,-300.0,5.817e-05,2]
[423473241,1780154135000,-5000.0,5.818e-05,2]
[423473243,1780154136000,-5000.0,5.818e-05,2]
[423473242,1780154136000,-5000.0,5.818e-05,2]
[423473244,1780154137000,-5000.0,5.818e-05,2]
[423473245,1780154138000,-5000.0,5.818e-05,2]
[423473247,1780154139000,-5000.0,5.818e-05,2]
[423473246,1780154139000,-5000.0,5.818e-05,2]
[423473248,1780154140000,-5000.0,5.818e-05,2]
[423473250,1780154141000,-5000.0,5.818e-05,2]
[423473249,1780154141000,-5000.0,5.818e-05,2]
[423473251,1780154142000,-5000.0,5.818e-05,2]
[423473252,1780154143000,-5000.0,5.818e-05,2]
[423473253,1780154144000,-5000.0,5.818e-05,2]
[423473254,1780154145000,-5000.0,5.818e-05,2]
[423473256,1780154146000,-5000.0,5.818e-05,2]
[423473255,1780154146000,-5000.0,5.818e-05,2]
[423473258,1780154147000,-5000.0,5.818e-05,2]
[423473257,1780154147000,-5000.0,5.818e-05,2]
[423473259,1780154148000,-5000.0,5.818e-05,2]
[423473260,1780154149000,-5000.0,5.818e-05,2]
[423473261,1780154150000,-5000.0,5.818e-05,2]
[423473262,1780154151000,-5000.0,5.818e-05,2]
[423473263,1780154153000,-5000.0,5.818e-05,2]
[423473264,1780154156000,-5000.0,5.818e-05,2]
[423473265,1780154157000,-5000.0,5.818e-05,2]
[423473266,1780154167000,-3265.0,5.818e-05,2]
[423473277,1780154668000,-3452.73303668,5.718e-05,2]
[423473276,1780154668000,-300.0,5.717e-05,2]
[423473274,1780154668000,-232.03034289,5.717e-05,2]
[423473275,1780154668000,-515.23662043,5.717e-05,2]
[423473273,1780154668000,-500.0,5.717e-05,2]
[423473278,1780154669000,-5000.0,5.718e-05,2]
[423473279,1780154670000,-5000.0,5.718e-05,2]
[423473280,1780154671000,-5000.0,5.718e-05,2]
[423473281,1780154672000,-5000.0,5.718e-05,2]
[423473282,1780154673000,-5000.0,5.718e-05,2]
[423473283,1780154675000,-3719.52738633,5.718e-05,2]
[423473284,1780154675000,-1280.47261367,5.718e-05,2]
[423473285,1780154676000,-5000.0,5.718e-05,2]
[423473286,1780154811000,-4351.0,5.618e-05,2]
[423473288,1780154857000,-1374.0,5.618e-05,2]
[423473287,1780154857000,-300.0,5.617e-05,2]
[423473290,1780154970000,2435.0488992,4.717e-05,2]
[423473319,1780155032000,-1200.0,5.617e-05,2]
[423473320,1780155032000,-574.10506966,5.618e-05,2]
[423473316,1780155032000,-174.48607695,5.517e-05,2]
[423473317,1780155032000,-258.96696317,5.617e-05,2]
[423473318,1780155032000,-41.03303683,5.617e-05,2]
[423473356,1780155038000,-17418.09287317,5.618e-05,2]
[423473354,1780155038000,-12728.26830482,5.618e-05,2]
[423473380,1780155039000,-49663.06401681,5.618e-05,2]
[423473641,1780155041000,-544.22752634,5.618e-05,2]
[423473622,1780155041000,-24476.4335792,5.618e-05,2]
[423473950,1780155043000,-9380.40445617,5.618e-05,2]
[423473952,1780155043000,-2287.82511158,5.618e-05,2]
[423473954,1780155044000,-2734.30346923,5.618e-05,2]
[423474282,1780155046000,-2452.93688462,5.618e-05,2]
[423474281,1780155046000,-913.95,5.618e-05,2]
[423474280,1780155046000,-8078.709267,5.618e-05,2]
[423474286,1780155047000,-785.90876817,5.618e-05,2]
[423474283,1780155047000,-112578.16085658,5.618e-05,2]
[423474284,1780155047000,-19211.11784142,5.618e-05,2]
[423474285,1780155047000,-898.15005825,5.618e-05,2]
[423474304,1780155072000,-4707.2390746,5.618e-05,2]
[423485038,1780155305000,172.024289,4.444e-05,2]
[423485041,1780155442000,-280.963132,5.313e-05,2]
[423485042,1780155442000,-166.25420372,5.415e-05,2]
[423485043,1780155527000,-339.14418492,5.415e-05,2]
[423485046,1780155527000,-91.03203498,5.614e-05,2]
[423485045,1780155527000,-280.963132,5.537e-05,2]
[423485044,1780155527000,-4288.8606481,5.518e-05,2]
[423485047,1780155529000,-408.96796502,5.614e-05,2]
[423485048,1780155529000,-626.13486713,5.614e-05,2]
[423485049,1780155529000,-500.0,5.614e-05,2]
[423485051,1780155529000,-500.0,5.614e-05,2]
[423485050,1780155529000,-500.0,5.614e-05,2]
[423485053,1780155529000,-187.97468694,5.614e-05,2]
[423485054,1780155529000,-500.0,5.614e-05,2]
[423485055,1780155529000,-500.0,5.614e-05,2]
[423485057,1780155529000,-276.92248091,5.614e-05,2]
[423485056,1780155529000,-500.0,5.614e-05,2]
[423485052,1780155529000,-500.0,5.614e-05,2]
[423485059,1780155531000,-259.00670744,5.614e-05,2]
[423485058,1780155531000,-223.07751909,5.614e-05,2]
[423485060,1780155531000,-500.0,5.614e-05,2]
[423485062,1780155531000,-500.0,5.614e-05,2]
[423485064,1780155531000,-500.0,5.614e-05,2]
[423485061,1780155531000,-500.0,5.614e-05,2]
[423485067,1780155531000,-500.0,5.614e-05,2]
[423485068,1780155531000,-500.0,5.614e-05,2]
[423485065,1780155531000,-500.0,5.614e-05,2]
[423485066,1780155531000,-500.0,5.614e-05,2]
[423485069,1780155531000,-17.91577347,5.614e-05,2]
[423485063,1780155531000,-500.0,5.614e-05,2]
[423485071,1780155532000,-500.0,5.614e-05,2]
[423485070,1780155532000,-482.08422653,5.614e-05,2]
[423485072,1780155532000,-500.0,5.614e-05,2]
[423485073,1780155532000,-500.0,5.614e-05,2]
[423485074,1780155532000,-500.0,5.614e-05,2]
[423485077,1780155532000,-500.0,5.614e-05,2]
[423485078,1780155532000,-500.0,5.614e-05,2]
[423485075,1780155532000,-500.0,5.614e-05,2]
[423485080,1780155532000,-17.91577347,5.614e-05,2]
[423485079,1780155532000,-500.0,5.614e-05,2]
[423485076,1780155532000,-500.0,5.614e-05,2]
[423485085,1780155536000,-500.0,5.614e-05,2]
[423485081,1780155536000,-482.08422653,5.614e-05,2]
[423485084,1780155536000,-500.0,5.614e-05,2]
[423485082,1780155536000,-500.0,5.614e-05,2]
[423485083,1780155536000,-500.0,5.614e-05,2]
[423485087,1780155536000,-500.0,5.614e-05,2]
[423485086,1780155536000,-500.0,5.614e-05,2]
[423485088,1780155536000,-500.0,5.614e-05,2]
[423485090,1780155536000,-500.0,5.614e-05,2]
[423485089,1780155536000,-500.0,5.614e-05,2]
[423485091,1780155536000,-17.91577347,5.614e-05,2]
[423485093,1780155537000,-368.19561395,5.614e-05,2]
[423485092,1780155537000,-482.08422653,5.614e-05,2]
[423485098,1780155537000,-500.0,5.614e-05,2]
[423485097,1780155537000,-500.0,5.614e-05,2]
[423485102,1780155537000,-149.72015952,5.614e-05,2]
[423485094,1780155537000,-500.0,5.614e-05,2]
[423485100,1780155537000,-500.0,5.614e-05,2]
[423485099,1780155537000,-500.0,5.614e-05,2]
[423485101,1780155537000,-500.0,5.614e-05,2]
[423485096,1780155537000,-500.0,5.614e-05,2]
[423485095,1780155537000,-500.0,5.614e-05,2]
[423485105,1780155542000,-931.0,5.616e-05,2]
[423485106,1780155542000,-300.0,5.617e-05,2]
[423485107,1780155542000,-2435.40883642,5.618e-05,2]
[423485103,1780155542000,-50.27984048,5.614e-05,2]
[423485104,1780155542000,-1283.3113231,5.616e-05,2]
[423485108,1780155543000,-5000.0,5.618e-05,2]
[423485109,1780155552000,-5000.0,5.618e-05,2]
[423485110,1780155553000,-5000.0,5.618e-05,2]
[423485111,1780155554000,-5000.0,5.618e-05,2]
[423485112,1780155555000,-5000.0,5.618e-05,2]
[423485113,1780155556000,-5000.0,5.618e-05,2]
[423485114,1780155557000,-5000.0,5.618e-05,2]
[423485116,1780155558000,-5000.0,5.618e-05,2]
[423485115,1780155558000,-5000.0,5.618e-05,2]
[423485117,1780155559000,-5000.0,5.618e-05,2]
[423485118,1780155560000,-5000.0,5.618e-05,2]
[423485120,1780155563000,-5000.0,5.618e-05,2]
[423485119,1780155563000,-5000.0,5.618e-05,2]
[423485122,1780155588000,-5000.0,5.518e-05,2]
[423485121,1780155588000,-5000.0,5.518e-05,2]
[423485123,1780155589000,-5000.0,5.518e-05,2]
[423485124,1780155590000,-5000.0,5.518e-05,2]
[423485125,1780155591000,-5000.0,5.518e-05,2]
[423485126,1780155592000,-5000.0,5.518e-05,2]
[423485128,1780155593000,-5000.0,5.518e-05,2]
[423485127,1780155593000,-5000.0,5.518e-05,2]
[423485129,1780155594000,-5000.0,5.518e-05,2]
[423485130,1780155596000,-5000.0,5.518e-05,2]
[423485131,1780155601000,-5000.0,5.518e-05,2]
[423485133,1780155602000,-4700.0,5.518e-05,2]
[423485132,1780155602000,-300.0,5.517e-05,2]
[423485134,1780155607000,-5000.0,5.518e-05,2]
[423485135,1780155608000,-5000.0,5.518e-05,2]
[423485137,1780155609000,-2680.89707248,5.618e-05,2]
[423485136,1780155609000,-2319.10292752,5.518e-05,2]
[423485138,1780155610000,-5000.0,5.618e-05,2]
[423485139,1780155611000,-5000.0,5.618e-05,2]
[423485140,1780155612000,-5000.0,5.618e-05,2]
[423485141,1780155613000,-5000.0,5.618e-05,2]
[423485142,1780155614000,-5000.0,5.618e-05,2]
[423485143,1780155621000,-5000.0,5.618e-05,2]
[423485144,1780155622000,-5000.0,5.618e-05,2]